bitfinex/quotes_ETHUSD_20220731
["timestamp","ask_amount","ask_price","bid_price","bid_amount"]
[1659226113244,4.60877095,1700.8,1700.0,3.09804672]
[1659226113459,4.60877095,1700.8,1700.0,3.07603665]
[1659226113849,4.60877095,1700.8,1700.1,2.89804672]
[1659226114148,4.60877095,1700.8,1700.1,3.24276107]
[1659226114149,5.20877095,1700.8,1700.1,3.24276107]
[1659226114347,5.20877095,1700.8,1700.2,2.89804672]
[1659226114348,3.0,1700.7,1700.2,2.89804672]
[1659226114552,3.3,1700.7,1700.2,2.89804672]
[1659226115116,3.34999999,1700.7,1700.2,2.84804672]
[1659226116171,3.34999999,1700.7,1700.3,0.34471435]
[1659226116326,3.34999999,1700.7,1700.3,3.24276107]
[1659226116524,3.29999999,1700.7,1700.3,3.24276107]
[1659226117127,3.29999999,1700.7,1700.3,3.420751]
[1659226117328,3.0,1700.7,1700.4,2.89804672]
[1659226117527,3.0,1700.7,1700.4,2.90102995]
[1659226118293,3.0,1700.8,1700.4,2.90102995]
[1659226118550,3.55,1700.8,1700.4,2.90102995]
[1659226118751,3.55,1700.8,1700.4,2.89804672]
[1659226120739,3.5,1700.8,1700.4,2.89804672]
[1659226121945,3.45,1700.8,1700.4,3.07603665]
[1659226122201,2.94179638,1700.9,1700.6,3.44799369]
[1659226122382,0.35,1701.0,1700.8,3.44799369]
[1659226122383,0.25319638,1701.0,1700.8,3.44799369]
[1659226122574,0.20319638,1701.0,1700.6,6.34604041]
[1659226122773,0.20319638,1701.0,1700.7,3.29313266]
[1659226123017,0.15319638,1701.0,1700.9,0.17798993]
[1659226123197,0.15319638,1701.0,1700.8,6.52403034]
[1659226123402,0.00025215,1701.1,1701.0,3.5]
[1659226123604,3.2385,1701.6,1701.0,6.52403034]
[1659226123799,16.7101,1701.8,1701.1,2.89804672]
[1659226123977,16.71009999,1701.8,1701.1,2.89804672]
[1659226124421,0.991,1702.2,1701.4,3.44799369]
[1659226124623,2.47765147,1701.9,1701.5,2.89804672]
[1659226124819,7.5,1702.2,1701.4,2.89804672]
[1659226125021,2.67781199,1702.1,1701.3,2.94804672]
[1659226125238,3.66881199,1702.1,1701.4,3.24276107]
[1659226125388,3.61881199,1702.1,1701.5,2.89804672]
[1659226125583,3.56881199,1702.1,1701.5,2.89804672]
[1659226125802,3.56881199,1702.1,1701.4,3.24276107]
[1659226126006,3.51881199,1702.1,1701.5,3.46498585]
[1659226126225,0.05,1702.2,1701.6,9.47376107]
[1659226126553,0.02201007,1702.3,1701.7,2.89804672]
[1659226126853,0.05,1702.4,1702.1,2.94804672]
[1659226127070,1.1265169,1702.5,1702.2,6.83704041]
[1659226127246,1.1265169,1702.5,1702.3,2.89804672]
[1659226127421,1.1265169,1702.5,1702.2,2.89804672]
[1659226127745,0.02201007,1702.4,1701.9,0.05]
[1659226127957,0.02201007,1702.4,1702.0,2.89804672]
[1659226128131,0.04999999,1702.3,1702.0,2.89804672]
[1659226128340,0.04999999,1702.3,1702.0,6.34604041]
[1659226128508,1.1265169,1702.5,1702.1,6.34604041]
[1659226128709,0.05,1702.7,1702.5,1.5]
[1659226128908,0.29362,1703.8,1702.4,13.37706914]
[1659226128909,8.68213804,1703.6,1702.6,6.39604041]
[1659226129113,8.68213804,1703.6,1702.8,2.89804672]
[1659226129355,7.45,1703.3,1702.9,0.34471435]
[1659226129539,0.24999999,1703.5,1702.6,6.231]
[1659226129540,0.991,1703.2,1702.6,0.05]
[1659226129750,0.991,1703.2,1702.4,3.2206]
[1659226130064,0.991,1703.2,1702.4,3.1706]
[1659226130065,7.45,1702.9,1702.4,3.1706]
[1659226130209,0.991,1702.8,1702.4,3.1706]
[1659226130410,0.991,1702.8,1702.1,0.05]
[1659226130411,4.0,1702.7,1702.1,0.05]
[1659226130625,1.16705661,1702.8,1701.9,0.05]
[1659226130626,2.82229999,1702.6,1701.9,0.05]
[1659226130849,8.0939,1702.5,1702.0,3.88909369]
[1659226131057,6.452604,1702.5,1702.0,3.44799369]
[1659226131413,2.7723,1702.6,1702.3,3.49799369]
[1659226131637,2.7665,1702.8,1702.4,2.89804672]
[1659226131826,0.05,1703.0,1702.4,2.89804672]
[1659226132058,0.04999999,1703.0,1702.4,2.89804672]
[1659226133254,0.05,1703.2,1702.4,3.24276107]
[1659226133497,0.04999999,1703.1,1702.5,2.89804672]
[1659226133858,0.05,1703.2,1702.7,9.32904672]
[1659226134050,8.0715,1703.3,1702.8,3.33894672]
[1659226134253,0.04999999,1703.2,1702.8,0.4409]
[1659226134468,0.04999999,1703.2,1702.5,3.93899369]
[1659226134701,8.12149999,1703.3,1702.7,3.49799369]
[1659226134857,8.07149999,1703.3,1702.7,2.89804672]
[1659226135251,3.0,1703.2,1702.7,2.89804672]
[1659226135563,0.05,1703.4,1702.9,3.44799369]
[1659226135787,3.1115,1703.6,1703.0,3.09804672]
[1659226135960,0.05,1703.7,1703.0,3.09804672]
[1659226136160,0.05,1703.8,1703.0,3.09804672]
[1659226136363,0.00293748,1703.8,1703.1,0.34471435]
[1659226136763,3.09804672,1703.7,1703.1,0.34471435]
[1659226136963,3.0,1703.6,1703.1,0.34471435]
[1659226137225,3.0,1703.6,1702.9,0.05]
[1659226137226,2.89804672,1703.5,1702.9,0.05]
[1659226137418,0.05,1703.7,1703.1,2.89804672]
[1659226137616,0.05,1703.7,1702.9,0.34471435]
[1659226137617,2.89804672,1703.7,1702.9,0.05]
[1659226137924,2.89804672,1703.6,1702.8,0.05]
[1659226138123,0.2,1703.4,1702.7,0.05]
[1659226138325,0.2,1703.4,1702.7,3.31232015]
[1659226138549,0.2,1703.4,1702.8,0.4409]
[1659226138758,0.05,1703.5,1702.8,3.33894672]
[1659226138963,0.2,1703.6,1702.9,2.89804672]
[1659226138964,0.2,1703.3,1702.9,2.89804672]
[1659226139110,0.05,1703.5,1702.9,3.36231198]
[1659226139310,2.89804672,1703.4,1702.9,0.46426526]
[1659226139575,2.85072969,1703.0,1702.0,3.49799369]
[1659226139769,6.14804672,1702.9,1701.9,0.05]
[1659226139912,6.14804672,1702.9,1702.0,0.05]
[1659226139913,2.6834968,1702.6,1702.0,0.05]
[1659226140111,0.05,1702.7,1702.0,3.44799369]
[1659226140351,3.0,1702.7,1702.2,0.05]
[1659226140555,0.3,1702.8,1702.1,0.05]
[1659226140762,0.3,1702.8,1702.2,0.05]
[1659226140763,3.19804672,1702.8,1702.2,0.05]
[1659226141060,3.19804672,1702.8,1702.0,3.49799369]
[1659226141061,0.05,1702.9,1702.7,0.05]
[1659226141235,8.9633,1703.3,1702.8,0.05]
[1659226141236,11.8612,1703.3,1702.8,0.05]
[1659226141435,0.05,1703.5,1702.8,0.05]
[1659226141751,0.05,1703.6,1702.8,0.05]
[1659226141967,0.05,1703.6,1702.9,0.05]
[1659226142265,0.05,1703.7,1702.9,3.44799369]
[1659226142469,2.89804672,1703.7,1702.9,3.64799369]
[1659226142614,13.06618106,1703.8,1703.1,0.2]
[1659226142814,13.0128,1703.8,1703.1,3.09804672]
[1659226143060,13.37706527,1703.8,1703.2,3.44799369]
[1659226143261,1.40526527,1703.8,1703.2,2.89804672]
[1659226143446,0.00315809,1703.8,1703.5,6.54604041]
[1659226143623,0.00315809,1703.8,1703.6,2.89804672]
[1659226143815,0.00315809,1703.8,1703.5,2.89804672]
[1659226144214,0.71426527,1704.0,1703.5,2.89804672]
[1659226144743,0.71426527,1704.0,1703.9,0.2]
[1659226144744,0.3,1704.0,1703.9,0.2]
[1659226144938,0.3,1704.0,1703.5,3.38874672]
[1659226145220,0.3,1704.0,1703.6,6.34604041]
[1659226145421,0.3,1704.0,1703.7,2.89804672]
[1659226145766,0.3,1704.0,1703.4,13.9283]
[1659226145767,2.89804672,1703.9,1703.4,0.05]
[1659226145987,2.89804672,1703.9,1703.2,0.05]
[1659226145988,7.6081,1703.8,1703.2,0.05]
[1659226146281,7.6081,1703.8,1703.3,2.89804672]
[1659226146483,0.35,1704.0,1703.4,3.9407]
[1659226146637,1.01426527,1704.0,1703.5,2.89804672]
[1659226146836,1.01426527,1704.0,1703.4,3.33874672]
[1659226147036,1.01426527,1704.0,1703.6,3.5]
[1659226147282,0.71426527,1704.0,1703.5,0.4407]
[1659226147477,0.71426527,1704.0,1703.3,8.0523]
[1659226147644,0.71426527,1704.0,1703.5,2.89804672]
[1659226148038,7.2677979,1704.2,1703.5,2.89804672]
[1659226148237,7.2177979,1704.2,1703.5,2.89804672]
[1659226148452,7.1024,1704.3,1703.5,2.89804672]
[1659226148453,3.2368,1704.3,1703.7,3.7]
[1659226148654,0.05,1704.4,1703.9,9.69876067]
[1659226148893,0.05,1704.6,1703.7,0.05]
[1659226149200,0.05,1704.6,1703.8,6.64013526]
[1659226149364,0.05,1704.6,1703.9,6.39804672]
[1659226149562,0.17605661,1705.2,1703.8,7.44208854]
[1659226149563,0.05,1704.7,1704.3,0.2]
[1659226149912,2.88987499,1705.5,1704.4,3.09804672]
[1659226149913,0.05,1704.9,1704.4,3.09804672]
[1659226150087,0.05,1705.1,1704.5,2.89804672]
[1659226150254,6.015,1705.4,1704.5,2.89804672]
[1659226150255,5.815,1705.4,1704.7,0.2]
[1659226150454,5.815,1705.4,1704.8,2.89804672]
[1659226150657,5.50584672,1705.4,1704.6,0.05]
[1659226150855,5.50584672,1705.4,1704.5,0.05]
[1659226151110,5.45584672,1705.4,1704.5,2.94804672]
[1659226151477,5.45584672,1705.4,1704.6,2.89804672]
[1659226151678,2.5578,1705.4,1704.6,2.89804672]
[1659226151879,2.6078,1705.4,1704.6,2.89804672]
[1659226152194,5.50584672,1705.4,1704.6,0.69026163]
[1659226152341,0.0035134,1705.3,1704.6,0.69026163]
[1659226152505,2.89804672,1705.2,1704.6,0.89026163]
[1659226152702,3.0,1705.1,1704.6,0.54471435]
[1659226152902,0.0535134,1705.3,1704.6,0.54471435]
[1659226153132,5.4690216,1705.4,1704.6,0.54471435]
[1659226153133,0.05,1705.4,1704.9,0.2]
[1659226153331,7.5661,1705.5,1705.0,0.34471435]
[1659226153654,0.0039918,1705.3,1705.0,3.24276107]
[1659226154004,0.0039918,1705.3,1705.0,3.68306107]
[1659226154205,0.0039918,1705.3,1705.0,3.24276107]
[1659226154407,0.0734034,1705.6,1705.0,3.24276107]
[1659226154608,0.0234034,1705.6,1705.0,3.24276107]
[1659226155133,0.01896065,1705.5,1705.0,3.92163937]
[1659226155512,0.01896065,1705.5,1705.1,2.89804672]
[1659226155911,0.0234034,1705.7,1705.1,2.89804672]
[1659226156109,0.0234034,1705.9,1705.2,0.6788783]
[1659226156316,0.01363531,1705.6,1705.1,0.05]
[1659226156511,0.01363531,1705.6,1703.9,3.7258]
[1659226156512,3.0,1705.1,1703.9,3.7258]
[1659226156714,0.2,1704.4,1703.5,0.17711906]
[1659226156914,0.2,1704.4,1703.7,3.5]
[1659226157141,2.89804672,1704.4,1703.5,3.9407]
[1659226157338,3.0,1704.3,1703.5,3.9407]
[1659226157539,2.8343,1704.9,1704.3,0.2]
[1659226157753,2.8343,1704.9,1704.0,7.0]
[1659226157754,3.4343,1704.9,1704.1,0.4406]
[1659226158066,3.4343,1704.9,1704.4,0.0325994]
[1659226158228,0.20287047,1704.6,1703.9,0.4406]
[1659226158436,2.89804672,1704.5,1703.5,0.4407]
[1659226158771,2.82416788,1704.6,1703.1,3.5]
[1659226158772,0.2,1704.3,1703.1,3.5]
[1659226158970,0.991,1704.2,1703.1,4.1408]
[1659226159119,2.89804672,1704.1,1703.1,3.7]
[1659226159319,1.291,1704.2,1703.1,9.931]
[1659226159320,3.35,1704.0,1703.1,9.931]
[1659226159561,3.09804672,1704.0,1703.2,0.4408]
[1659226159820,0.5,1704.0,1703.3,0.54471435]
[1659226159982,0.15,1704.0,1703.3,0.54471435]
[1659226160173,0.15,1704.0,1703.4,3.5]
[1659226160376,3.0,1704.0,1703.4,3.45]
[1659226160574,0.3,1704.0,1703.5,0.34471435]
[1659226160819,3.35,1704.2,1703.5,0.34471435]
[1659226160989,6.19804672,1704.2,1703.5,0.34471435]
[1659226161174,6.49804672,1704.2,1703.5,0.29471435]
[1659226161776,5.0,1703.7,1702.4,0.2]
[1659226161975,0.1,1703.5,1702.8,6.95]
[1659226162226,3.35,1703.6,1702.5,11.2302]
[1659226162378,0.05,1703.5,1702.6,13.7219]
[1659226162585,0.05,1703.5,1702.8,13.131]
[1659226162811,3.05,1703.6,1702.9,3.63366107]
[1659226163025,0.65,1703.7,1703.0,2.89804672]
[1659226163330,0.4,1703.8,1703.0,2.84804672]
[1659226163555,0.05,1703.8,1703.0,2.84804672]
[1659226163759,3.49804672,1703.7,1702.9,3.68366107]
[1659226164058,3.0,1703.6,1702.9,3.19276107]
[1659226164213,3.0,1703.6,1702.9,3.14276107]
[1659226164743,3.0,1703.6,1702.9,3.09276107]
[1659226164945,0.15,1703.5,1703.0,2.89804672]
[1659226165313,0.15,1703.5,1702.9,3.04276107]
[1659226165517,0.15,1703.5,1702.9,0.14471435]
[1659226165814,2.89804672,1703.4,1702.7,0.05]
[1659226166018,0.05,1702.9,1702.6,0.05]
[1659226166255,0.2,1703.1,1702.2,6.9]
[1659226166256,0.05,1703.1,1702.2,6.9]
[1659226166458,2.89804672,1703.0,1702.2,9.79804672]
[1659226166661,2.89804672,1703.0,1702.2,2.89804672]
[1659226166662,3.24804672,1703.0,1702.2,2.89804672]
[1659226166865,0.05,1702.9,1702.2,2.89804672]
[1659226167014,3.05,1702.9,1702.3,3.4]
[1659226167245,0.05,1702.4,1702.1,0.05]
[1659226167444,0.05,1702.4,1702.0,0.00367071]
[1659226167693,0.05,1702.7,1702.0,2.90171743]
[1659226167843,0.05,1702.5,1702.0,0.00367071]
[1659226168047,0.05,1702.5,1701.3,6.9]
[1659226168048,0.05,1702.0,1701.8,0.05]
[1659226168301,0.05,1702.0,1701.4,8.3388]
[1659226168589,0.05,1702.0,1701.4,8.2888]
[1659226168590,0.25,1702.0,1701.4,8.2888]
[1659226168791,0.25,1702.0,1701.9,0.00214296]
[1659226169095,0.75,1702.0,1701.9,0.00214296]
[1659226169265,0.5,1702.0,1701.9,0.00214296]
[1659226169596,0.2,1702.0,1701.5,0.05]
[1659226169752,0.2,1702.0,1701.4,8.2888]
[1659226169948,0.2,1702.0,1701.4,8.87481434]
[1659226170150,0.2,1702.0,1701.6,0.00214334]
[1659226170564,0.05,1701.9,1701.6,0.00214334]
[1659226171049,0.4,1702.0,1701.4,8.43351434]
[1659226171050,0.947,1701.7,1701.4,0.14471434]
[1659226171251,0.947,1701.7,1701.1,0.4913]
[1659226171549,0.947,1701.7,1701.1,0.4413]
[1659226171694,1.147,1701.7,1701.4,0.00367204]
[1659226171895,0.947,1701.5,1701.4,0.00367204]
[1659226172327,0.947,1701.5,1701.0,3.64311876]
[1659226172497,0.65,1701.5,1701.0,0.25367204]
[1659226172697,0.647,1701.1,1701.0,0.15367204]
[1659226173144,0.947,1701.1,1701.0,0.15367204]
[1659226173342,3.54804672,1701.5,1701.0,0.15367204]
[1659226173343,0.35,1701.5,1701.0,0.15367204]
[1659226173497,0.3,1701.5,1701.0,0.15367204]
[1659226173827,0.05,1701.7,1701.0,3.87444299]
[1659226174139,0.05,1701.6,1701.0,0.73978638]
[1659226174338,0.05,1701.6,1701.0,0.29838638]
[1659226174541,0.05,1701.4,1701.0,0.29838638]
[1659226176339,0.05,1701.1,1701.0,0.15367204]
[1659226176681,0.647,1701.1,1701.0,0.15367204]
[1659226177326,0.6,1701.1,1701.0,0.15367204]
[1659226177525,0.65,1701.1,1701.0,0.15367204]
[1659226177726,0.35,1701.1,1701.0,0.15367204]
[1659226177950,0.3,1701.1,1701.0,0.15367204]
[1659226178168,1.236,1701.1,1701.0,0.15367204]
[1659226178348,0.35,1701.1,1701.0,0.15367204]
[1659226178575,0.85,1701.1,1701.0,0.15367204]
[1659226178905,3.0,1701.3,1701.0,0.15367204]
[1659226178906,0.3,1701.2,1701.0,0.15367204]
[1659226179060,0.3,1701.2,1701.0,7.204e-05]
[1659226179061,8.44804672,1701.1,1701.0,7.204e-05]
[1659226179265,8.44804672,1701.1,1700.7,0.00203002]
[1659226179266,1.236,1700.8,1700.7,0.00203002]
[1659226179460,1.236,1700.8,1700.3,0.05]
[1659226179789,0.05,1700.3,1700.1,0.05]
[1659226179996,0.05,1700.3,1700.0,1.101281]
[1659226180193,0.05,1700.1,1700.0,1.101281]
[1659226180503,0.647,1700.1,1700.0,1.101281]
[1659226180703,0.05,1700.5,1700.0,8.001281]
[1659226180869,0.35,1700.7,1700.2,3.4]
[1659226181057,0.05,1700.9,1700.5,3.55]
[1659226181258,2.7681,1701.1,1700.6,0.14471434]
[1659226181682,2.89804672,1701.0,1700.4,0.05]
[1659226181892,2.89804672,1701.0,1700.2,0.05]
[1659226182075,2.89804672,1701.0,1700.1,0.05203073]
[1659226182076,0.05,1700.4,1700.1,0.05203073]
[1659226182279,2.94804672,1701.0,1700.1,0.05203073]
[1659226182280,0.2,1700.5,1700.1,0.00203073]
[1659226182478,0.05,1700.7,1700.0,1.101281]
[1659226182659,0.05,1700.8,1700.0,1.101281]
[1659226182859,3.49804672,1700.8,1700.0,1.101281]
[1659226183099,3.2,1700.7,1700.0,4.601281]
[1659226183303,3.5,1700.7,1700.0,1.101281]
[1659226183516,3.5,1700.7,1700.0,1.10488256]
[1659226183517,6.44804672,1700.7,1700.0,1.10488256]
[1659226183694,6.44804672,1700.7,1700.0,1.54648256]
[1659226184213,6.44804672,1700.7,1700.0,1.542881]
[1659226184581,6.44804672,1700.7,1700.0,1.68759534]
[1659226184896,6.39804672,1700.7,1700.0,1.6911969]
[1659226185209,0.2,1700.7,1700.1,2.90111683]
[1659226185408,0.05,1700.9,1700.3,7.0]
[1659226185622,2.89804672,1700.9,1700.2,0.58631434]
[1659226186131,11.5495,1701.0,1700.2,0.58631434]
[1659226186132,2.89804672,1700.6,1700.2,0.58631434]
[1659226186334,0.25,1700.1,1700.0,1.101281]
[1659226186497,3.14804672,1700.1,1700.0,1.101281]
[1659226186826,0.85,1700.1,1700.0,1.101281]
[1659226186986,0.55,1700.1,1700.0,1.101281]
[1659226187829,0.3,1700.1,1700.0,1.101281]
[1659226187995,0.05,1700.5,1700.0,1.101281]
[1659226188194,3.19804672,1700.5,1700.0,1.101281]
[1659226188397,0.05,1700.3,1700.0,1.101281]
[1659226188593,3.0,1700.4,1700.0,1.101281]
[1659226188819,3.25,1700.4,1700.0,1.101281]
[1659226189027,3.55,1700.4,1700.0,1.101281]
[1659226189391,3.5,1700.4,1700.0,1.101281]
[1659226189815,3.3,1700.3,1700.0,1.101281]
[1659226190018,0.5,1700.4,1700.0,1.101281]
[1659226190534,0.05,1700.7,1700.1,0.14778445]
[1659226190690,3.09804672,1700.7,1700.1,0.14778445]
[1659226190892,0.2,1700.7,1700.1,0.14778445]
[1659226191145,0.05,1700.9,1700.3,3.65]
[1659226191306,3.0205,1701.0,1700.6,3.5]
[1659226191307,0.05,1701.0,1700.6,3.5]
[1659226191504,0.05,1701.2,1700.8,7.0]
[1659226191703,0.05,1701.4,1700.9,0.15]
[1659226191907,0.05,1701.6,1700.8,2.89804672]
[1659226192133,0.05,1701.6,1700.9,0.2596191]
[1659226192344,14.3994,1701.9,1700.9,0.2596191]
[1659226192345,0.2,1701.5,1700.9,0.2596191]
[1659226192936,0.05,1701.7,1701.2,0.15]
[1659226193091,11.1182,1701.9,1701.3,3.15766582]
[1659226193291,0.05,1702.0,1701.4,2.89804672]
[1659226193528,0.05,1702.0,1701.3,0.7009191]
[1659226193529,1.041,1702.2,1701.2,0.05]
[1659226193762,0.05,1701.7,1701.2,0.05]
[1659226193943,0.05,1701.7,1701.0,0.05]
[1659226194146,0.05,1701.7,1701.0,0.14471434]
[1659226195739,0.2,1701.6,1701.0,3.64471434]
[1659226196078,2.63235661,1702.1,1701.1,0.00476943]
[1659226196263,0.05,1701.8,1701.1,0.05476943]
[1659226196438,0.05,1701.9,1701.1,0.00476943]
[1659226196873,2.85841322,1702.1,1701.1,0.00476943]
[1659226197077,2.89804672,1701.8,1701.1,0.05476943]
[1659226197444,3.0,1701.7,1701.1,0.00476943]
[1659226197591,6.54804672,1701.7,1701.1,0.00476943]
[1659226197754,6.54804672,1701.7,1700.9,0.05221046]
[1659226197755,0.05,1701.4,1700.9,0.05]
[1659226197954,2.89804672,1701.3,1700.7,0.05]
[1659226198185,3.0,1701.2,1700.5,0.05]
[1659226198391,3.0,1701.2,1700.4,3.9415]
[1659226198392,0.35,1701.3,1700.9,0.0035997]
[1659226198596,3.05,1701.5,1700.9,0.0035997]
[1659226198764,3.3,1701.5,1700.9,0.0035997]
[1659226198966,3.6,1701.5,1700.9,0.0035997]
[1659226199173,3.6,1701.5,1700.7,0.4914]
[1659226199371,0.05,1701.5,1701.2,0.15]
[1659226199558,0.05,1701.8,1701.2,3.04804672]
[1659226199759,0.05,1701.9,1701.3,3.24276107]
[1659226199973,0.05,1702.0,1701.4,2.89804672]
[1659226200202,13.56965661,1702.1,1701.5,0.11490476]
[1659226200360,2.89804672,1701.9,1701.3,0.39471435]
[1659226200560,0.05,1701.8,1701.3,0.34471435]
[1659226200776,2.89804672,1701.8,1701.3,0.34471435]
[1659226201401,0.05,1701.6,1701.3,0.34471435]
[1659226202136,0.05,1701.6,1701.0,0.4914]
[1659226202456,0.05,1701.6,1701.0,0.90101911]
[1659226202643,0.05,1701.7,1701.2,7.15]
[1659226202816,0.05,1701.9,1701.3,6.645102]
[1659226203016,0.05,1702.0,1701.4,0.45961911]
[1659226203349,2.89804672,1701.9,1701.4,0.45961911]
[1659226203510,10.9373,1702.1,1701.4,3.35766583]
[1659226203511,10.9873,1702.1,1701.4,3.35766583]
[1659226203717,2.89804672,1702.0,1701.4,0.45961911]
[1659226204150,10.9373,1702.1,1701.4,3.35766583]
[1659226204352,3.0,1702.0,1701.4,3.35766583]
[1659226204657,3.6,1702.0,1701.4,3.35766583]
[1659226205114,7.9787,1702.1,1701.9,0.15]
[1659226205313,6.0969,1702.6,1702.0,0.45961911]
[1659226205314,0.05,1702.4,1702.0,0.45961911]
[1659226205472,5.5748,1702.6,1702.0,3.35766583]
[1659226205803,0.05,1702.7,1702.0,0.45961911]
[1659226206010,2.89804672,1702.6,1702.0,0.90071911]
[1659226206195,0.05,1702.8,1702.0,3.35766583]
[1659226206196,0.05,1702.7,1702.0,3.35766583]
[1659226206399,2.89804672,1702.7,1702.0,3.79876583]
[1659226206602,0.05,1702.8,1702.2,0.15]
[1659226206768,0.991,1702.9,1702.3,0.41144688]
[1659226206769,1.041,1702.9,1702.3,0.41144688]
[1659226207103,3.88904672,1702.9,1702.3,0.41144688]
[1659226207483,2.89804672,1702.8,1702.3,0.41144688]
[1659226207798,2.89804672,1702.8,1702.1,0.05]
[1659226208014,2.94804672,1702.5,1702.0,0.05]
[1659226208223,2.94804672,1702.5,1701.8,0.05]
[1659226208224,6.19804672,1702.4,1701.8,0.05]
[1659226208365,0.3,1702.4,1701.8,0.41146648]
[1659226208570,2.89804672,1702.4,1701.8,0.41146648]
[1659226208825,2.89804672,1702.4,1701.6,0.05]
[1659226208826,0.05,1702.0,1701.6,0.05]
[1659226209137,0.05,1702.0,1701.3,0.05]
[1659226209356,0.05,1702.0,1701.2,2.8746]
[1659226209671,0.05,1702.0,1701.1,0.05]
[1659226209672,0.05,1701.5,1701.1,0.05]
[1659226209823,0.05,1701.5,1701.0,0.41149788]
[1659226209824,2.94804672,1701.5,1701.0,0.41149788]
[1659226210020,2.94804672,1701.5,1700.8,0.05]
[1659226210021,0.05,1701.2,1700.8,0.05]
[1659226210248,0.05,1701.2,1700.3,3.0546]
[1659226210249,0.05,1700.7,1700.5,0.05]
[1659226210469,0.1,1701.0,1700.2,11.5]
[1659226210621,0.1,1701.0,1700.3,0.15]
[1659226210622,3.05,1701.0,1700.3,0.15]
[1659226210820,0.3,1701.1,1700.7,0.00340409]
[1659226210821,0.05,1701.1,1700.7,0.00340409]
[1659226211020,0.6,1701.2,1700.7,0.00340409]
[1659226211255,6.8157,1701.4,1700.7,0.00340409]
[1659226211420,2.89804672,1701.3,1700.7,0.00340409]
[1659226211757,3.0,1701.2,1700.7,0.34471435]
[1659226212069,3.3,1701.2,1700.7,0.34471435]
[1659226212237,0.6,1701.2,1700.7,0.34471435]
[1659226212499,0.05,1701.4,1700.7,3.24636125]
[1659226212702,3.65,1701.5,1700.7,3.24636125]
[1659226213223,3.65,1701.5,1700.7,3.24276107]
[1659226213427,2.89804672,1701.4,1700.7,0.34471435]
[1659226213580,3.0,1701.3,1700.7,0.34471435]
[1659226213780,3.6,1701.3,1700.7,0.34471435]
[1659226216040,2.89804672,1701.2,1700.5,2.8553]
[1659226216251,0.05,1700.7,1700.5,2.8053]
[1659226216456,0.05,1700.7,1700.4,0.34471348]
[1659226217338,0.1,1701.0,1700.4,0.34471348]
[1659226217659,0.05,1701.0,1700.4,0.34471348]
[1659226218626,3.19804672,1700.9,1700.4,0.34471348]
[1659226218823,3.49804672,1700.9,1700.4,0.34471348]
[1659226219039,3.49804672,1700.9,1700.4,0.34747495]
[1659226219545,3.49804672,1700.9,1700.5,0.06872222]
[1659226219859,0.05,1700.6,1700.4,0.34747495]
[1659226220073,0.05,1700.6,1700.4,0.34471348]
[1659226220584,0.05,1700.6,1700.4,0.34747495]
[1659226221219,0.05,1700.6,1700.4,0.34471348]
[1659226221628,3.59804672,1700.9,1700.4,0.34471348]
[1659226221823,3.54804672,1700.9,1700.4,0.34471348]
[1659226222565,3.54804672,1700.9,1700.4,0.45961824]
[1659226224333,2.89804672,1700.8,1700.4,0.45961824]
[1659226224539,0.6,1700.9,1700.4,0.45961824]
[1659226224734,0.3,1700.8,1700.4,0.45961824]
[1659226224969,0.35,1701.0,1700.4,0.45961824]
[1659226225172,3.35,1701.2,1700.4,0.45961824]
[1659226225374,2.89804672,1701.1,1700.4,0.45961824]
[1659226225546,3.0,1701.0,1700.4,0.45961824]
[1659226225746,3.6,1701.0,1700.4,0.45961824]
[1659226225972,3.6,1701.0,1700.4,0.46216925]
[1659226226842,3.6,1701.0,1700.4,0.45961824]
[1659226227290,3.6,1701.0,1700.4,0.46216933]
[1659226228383,3.6,1701.0,1700.4,0.45961824]
[1659226228536,3.6,1701.0,1700.4,0.46216933]
[1659226229384,3.6,1701.0,1700.4,0.45961824]
[1659226229555,3.65,1701.0,1700.4,0.45961824]
[1659226229755,3.65,1701.0,1700.4,0.46209659]
[1659226229971,0.05,1700.8,1700.4,0.11738311]
[1659226230181,3.24804672,1700.8,1700.4,0.00247835]
[1659226230340,6.24804672,1700.8,1700.4,0.00247835]
[1659226230541,6.54804672,1700.8,1700.4,0.00247835]
[1659226230770,6.54804672,1700.8,1700.1,11.0967]
[1659226230771,3.54804672,1700.8,1700.1,11.0967]
[1659226230985,3.54804672,1700.8,1700.2,0.41344141]
[1659226231166,3.54804672,1700.8,1700.3,0.0024785]
[1659226231591,3.49804672,1700.8,1700.3,0.0024785]
[1659226231769,3.54804672,1700.8,1700.3,0.0024785]
[1659226232163,0.05,1700.6,1700.2,0.41344141]
[1659226232809,0.05,1700.6,1700.2,0.41591998]
[1659226233600,0.05,1700.6,1700.2,0.41344141]
[1659226236184,0.3,1700.7,1700.2,0.41344141]
[1659226237304,0.05,1700.6,1700.2,0.41344141]
[1659226239612,0.05,1700.9,1700.2,0.41344141]
[1659226239950,0.05,1700.9,1700.3,0.4415]
[1659226239951,0.05,1700.8,1700.3,0.4415]
[1659226240109,0.05,1700.8,1700.2,0.85504141]
[1659226240306,0.05,1700.4,1699.6,11.5]
[1659226240512,0.05,1700.4,1699.3,0.29401]
[1659226240513,1.75,1699.7,1699.3,0.29401]
[1659226240750,1.5,1699.7,1699.0,0.44144]
[1659226241104,0.05,1699.5,1699.0,0.44144]
[1659226241754,3.24804672,1699.5,1699.0,0.44144]
[1659226241907,0.05,1699.3,1699.0,0.44144]
[1659226242310,0.05,1699.1,1699.0,0.44144]
[1659226242614,3.49804672,1699.5,1699.0,0.44144]
[1659226242615,3.54804672,1699.5,1699.1,0.01197]